fUSD/lending_fUSD_20240116
["ID","MTS","AMOUNT","RATE_DAILY","PERIOD"]
[311725495,1705365004728,150.0,0.000217,2]
[311725496,1705365008013,150.0,0.000217,2]
[311725497,1705365008488,150.0,0.000217,2]
[311725498,1705365008907,150.0,0.000217,2]
[311725499,1705365009145,150.0,0.000217,2]
[311725500,1705365009364,261.11940098,0.000217,2]
[311725501,1705365012312,194.81,0.00021641,10]
[311725502,1705365013059,250.0,0.00021918,2]
[311725524,1705365032583,-152.67,0.00022107,2]
[311725527,1705365032593,-723.04034847,0.00022112,2]
[311725534,1705365032626,-939.02969699,0.00022112,2]
[311725537,1705365032637,-565.73454976,0.00022112,2]
[311725542,1705365032649,-250.0,0.00022112,2]
[311725545,1705365032661,-427.57298878,0.00022112,2]
[311725554,1705365032705,-783.78704333,0.00022112,2]
[311725557,1705365032717,-1751.32313807,0.00022112,2]
[311725560,1705365032726,-2693.0258422,0.00022113,2]
[311725563,1705365032735,-155.9,0.00022114,2]
[311725565,1705365032745,-204.0,0.00022192,2]
[311725568,1705365032754,-152.67,0.00022211,2]
[311725571,1705365032763,-155.9,0.00022244,2]
[311725574,1705365032772,-155.9,0.00022373,2]
[311725577,1705365032782,-150.0,0.00022374,2]
[311725580,1705365032793,-2304.12008912,0.00022375,2]
[311725583,1705365032805,-3876.87991088,0.00022375,2]
[311725586,1705365032815,-200.0,0.000224,8]
[311725589,1705365032824,-4926.24,0.000224,2]
[311725592,1705365032834,-685.71,0.00022432,2]
[311725594,1705365032843,-202.33,0.00022432,2]
[311725596,1705365032853,-1154.62,0.00022433,2]
[311725598,1705365032863,-499.99,0.00022433,2]
[311725600,1705365032872,-351.72,0.00022446,2]
[311725602,1705365032882,-500.0,0.000225,8]
[311725603,1705365032893,-155.9,0.00022502,2]
[311725605,1705365032903,-800.0,0.000226,8]
[311725607,1705365032913,-155.9,0.00022631,2]
[311725609,1705365032922,-1000.0,0.00022663,2]
[311725611,1705365032934,-25867.0299,0.00022664,2]
[311725613,1705365032943,-773.05,0.00022664,2]
[311725616,1705365032953,-658.66970858,0.00022667,2]
[311725618,1705365032964,-59962.4369,0.00022699,2]
[311725619,1705365032973,-165.97418147,0.00022699,2]
[311725621,1705365032982,-2010.50294159,0.000227,2]
[311725623,1705365032991,-1000.0,0.000227,8]
[311725625,1705365033000,-194.81,0.00022702,10]
[311725627,1705365033010,-1866.3407,0.00022732,2]
[311725630,1705365033019,-155.9,0.00022761,2]
[311725632,1705365033028,-729.51,0.00022764,2]
[311725633,1705365033037,-725.67,0.00022765,2]
[311725636,1705365033047,-153.0,0.00022766,2]
[311725638,1705365033056,-800.0,0.00022767,2]
[311725640,1705365033066,-730.38,0.00022785,2]
[311725641,1705365033074,-185.09475926,0.00022789,2]
[311725644,1705365033084,-203.08140272,0.00022796,2]
[311725645,1705365033094,-159.63220399,0.00022796,2]
[311725647,1705365033106,-199.9693645,0.00022797,2]
[311725649,1705365033115,-1527.17,0.00022797,2]
[311725650,1705365033125,-6379.62,0.00022797,2]
[311725652,1705365033136,-2341.99,0.00022797,2]
[311725654,1705365033146,-1801.51,0.00022797,2]
[311725656,1705365033155,-905.42,0.00022797,2]
[311725658,1705365033165,-5347.88,0.00022797,2]
[311725660,1705365033175,-1343.46,0.00022797,2]
[311725662,1705365033184,-17508.19810377,0.00022797,2]
[311725665,1705365033197,-16435.04189623,0.00022797,2]
[311725666,1705365033206,-2941.16,0.00022797,2]
[311725669,1705365033215,-2532.93,0.00022797,2]
[311725670,1705365033225,-4453.38,0.00022797,2]
[311725672,1705365033234,-500.0,0.00022797,2]
[311725674,1705365033243,-797.32,0.00022797,2]
[311725676,1705365033253,-1764.17,0.00022797,2]
[311725678,1705365033264,-500.0,0.00022797,2]
[311725680,1705365033274,-1528.11,0.00022797,2]
[311725682,1705365033283,-1509.74,0.00022797,2]
[311725684,1705365033292,-651.58,0.00022797,2]
[311725686,1705365033302,-1445.22,0.00022797,2]
[311725688,1705365033311,-2027.93,0.00022797,2]
[311725690,1705365033320,-1336.48,0.00022797,2]
[311725692,1705365033329,-3892.49,0.00022797,2]
[311725694,1705365033338,-905.87,0.00022797,2]
[311725695,1705365033348,-960.98,0.00022797,2]
[311725696,1705365033358,-500.0,0.00022797,2]
[311725697,1705365033368,-18483.62,0.00022797,2]
[311725698,1705365033378,-1831.47,0.00022797,2]
[311725699,1705365033388,-1093.99,0.00022797,2]
[311725700,1705365033399,-1403.43,0.00022797,2]
[311725701,1705365033409,-3014.75,0.00022797,2]
[311725702,1705365033419,-786.53,0.00022797,2]
[311725703,1705365033429,-671.68,0.00022797,2]
[311725704,1705365033442,-500.0,0.00022797,2]
[311725705,1705365033453,-1590.96,0.00022797,2]
[311725706,1705365033463,-672.8,0.00022797,2]
[311725707,1705365033473,-500.0,0.00022797,2]
[311725708,1705365033483,-500.0,0.00022797,2]
[311725709,1705365033495,-1096.65,0.00022797,2]
[311725710,1705365033505,-1326.51,0.00022797,2]
[311725711,1705365033515,-1702.89,0.00022797,2]
[311725712,1705365033525,-1718.23,0.00022797,2]
[311725713,1705365033534,-4712.98,0.00022797,2]
[311725714,1705365033544,-500.0,0.00022797,2]
[311725715,1705365033554,-500.0,0.00022797,2]
[311725716,1705365033563,-500.0,0.00022797,2]
[311725717,1705365033572,-693.71,0.00022797,2]
[311725718,1705365033582,-942.02,0.00022797,2]
[311725719,1705365033591,-1973.09,0.00022797,2]
[311725720,1705365033600,-970.65,0.00022797,2]
[311725721,1705365033612,-1207.85,0.00022798,2]
[311725722,1705365033621,-500.0,0.00022798,2]
[311725723,1705365033631,-949.65,0.00022798,2]
[311725724,1705365033640,-907.6,0.00022798,2]
[311725725,1705365033650,-1497.22,0.00022798,2]
[311725726,1705365033658,-500.0,0.00022798,2]
[311725727,1705365033668,-598.74,0.00022798,2]
[311725728,1705365033677,-1207.67,0.00022798,2]
[311725729,1705365033687,-500.0,0.00022798,2]
[311725730,1705365033697,-607.72,0.00022798,2]
[311725731,1705365033706,-1456.59,0.00022798,2]
[311725732,1705365033716,-1186.87,0.00022798,2]
[311725733,1705365033725,-809.85,0.00022798,2]
[311725734,1705365033734,-710.05,0.00022798,2]
[311725735,1705365033744,-624.0,0.00022798,2]
[311725736,1705365033754,-1039.61,0.00022798,2]
[311725737,1705365033763,-1232.97,0.00022798,2]
[311725738,1705365033772,-951.53,0.00022798,2]
[311725739,1705365033783,-500.0,0.00022798,2]
[311725740,1705365033792,-898.24,0.00022798,2]
[311725741,1705365033802,-814.43,0.00022798,2]
[311725742,1705365033811,-792.19,0.00022798,2]
[311725743,1705365033820,-937.54,0.00022798,2]
[311725744,1705365033830,-667.25,0.00022798,2]
[311725745,1705365033839,-608.41,0.00022798,2]
[311725746,1705365033849,-500.0,0.00022798,2]
[311725747,1705365033859,-500.0,0.00022798,2]
[311725748,1705365033869,-714.06,0.00022798,2]
[311725749,1705365033878,-1750.55,0.00022798,2]
[311725750,1705365033887,-864.97,0.00022798,2]
[311725751,1705365033896,-555.46,0.00022798,2]
[311725752,1705365033905,-928.78,0.00022798,2]
[311725753,1705365033914,-1007.52,0.00022798,2]
[311725754,1705365033924,-943.49,0.00022798,2]
[311725755,1705365033933,-768.56,0.00022798,2]
[311725756,1705365033942,-820.09,0.00022798,2]
[311725757,1705365033951,-874.83,0.00022798,2]
[311725758,1705365033960,-511.54,0.00022798,2]
[311725759,1705365033969,-886.78,0.00022798,2]
[311725760,1705365033979,-500.0,0.00022798,2]
[311725761,1705365033988,-500.0,0.00022798,2]
[311725762,1705365033998,-511.74,0.00022798,2]
[311725763,1705365034007,-947.12,0.00022798,2]
[311725764,1705365034017,-712.82,0.00022798,2]
[311725765,1705365034026,-500.0,0.00022798,2]
[311725766,1705365034035,-500.0,0.00022798,7]
[311725767,1705365034044,-865.65,0.00022798,2]
[311725768,1705365034054,-536.26,0.00022798,2]
[311725769,1705365034063,-552.91,0.00022798,2]
[311725770,1705365034074,-913.81,0.00022798,2]
[311725771,1705365034085,-500.0,0.00022798,2]
[311725772,1705365034094,-1093.61,0.00022798,2]
[311725773,1705365034104,-500.0,0.00022798,2]
[311725774,1705365034114,-2091.76,0.00022798,2]
[311725775,1705365034125,-1051.69,0.00022798,2]
[311725776,1705365034135,-809.34,0.00022798,2]
[311725777,1705365034145,-537.27949322,0.00022798,2]
[311725778,1705365034154,-1171.39,0.00022798,2]
[311725779,1705365034164,-1319.97,0.00022798,2]
[311725780,1705365034173,-6114.68,0.00022798,2]
[311725781,1705365034182,-760.51,0.00022798,2]
[311725782,1705365034192,-545.92,0.00022798,2]
[311725783,1705365034201,-1314.52,0.00022798,2]
[311725784,1705365034210,-2827.32,0.00022798,2]
[311725785,1705365034220,-500.0,0.00022798,2]
[311725786,1705365034228,-500.0,0.00022798,2]
[311725787,1705365034238,-500.0,0.00022798,2]
[311725788,1705365034248,-3668.11,0.00022798,2]
[311725789,1705365034257,-2658.13,0.00022798,2]
[311725790,1705365034267,-1027.51,0.00022798,2]
[311725791,1705365034276,-1937.85,0.00022798,2]
[311725792,1705365034285,-522.88557127,0.00022798,2]
[311725793,1705365034294,-805.68,0.00022798,2]
[311725794,1705365034304,-879.14,0.00022798,5]
[311725795,1705365034313,-870.87,0.00022798,2]
[311725796,1705365034323,-500.0,0.00022798,2]
[311725797,1705365034332,-902.77,0.00022798,2]
[311725798,1705365034748,-3060.76,0.00022798,2]
[311725799,1705365034758,-500.0,0.00022798,2]
[311725800,1705365034767,-1231.6,0.00022798,2]
[311725801,1705365034777,-500.0,0.00022798,2]
[311725802,1705365034786,-1011.05,0.00022798,2]
[311725803,1705365034795,-3459.02,0.00022798,2]
[311725804,1705365034805,-3813.86,0.00022798,2]
[311725805,1705365034814,-1293.64,0.00022798,2]
[311725806,1705365034824,-500.0,0.00022798,2]
[311725807,1705365034833,-948.59,0.00022798,2]
[311725808,1705365034842,-507.16,0.00022798,2]
[311725809,1705365034851,-500.0,0.00022798,2]
[311725810,1705365034862,-11648.11,0.00022798,2]
[311725811,1705365034871,-1438.32,0.00022798,2]
[311725812,1705365034881,-17533.98,0.00022798,2]
[311725813,1705365034890,-10574.26,0.00022798,2]
[311725814,1705365034899,-989.06,0.00022798,2]
[311725815,1705365034908,-6427.05,0.00022798,2]
[311725816,1705365034918,-891.77,0.00022798,2]
[311725817,1705365034927,-500.0,0.00022798,2]
[311725818,1705365034936,-6294.23,0.00022798,2]
[311725819,1705365034946,-636.44,0.00022798,2]
[311725820,1705365034956,-3864.84,0.00022798,2]
[311725821,1705365034966,-1953.04,0.00022798,2]
[311725822,1705365034975,-1054.2,0.00022798,2]
[311725823,1705365034985,-4656.23,0.00022798,2]
[311725824,1705365034994,-1584.65,0.00022798,2]
[311725825,1705365035004,-500.0,0.00022798,2]
[311725826,1705365035014,-2484.67,0.00022798,2]
[311725827,1705365035024,-1579.28,0.00022798,2]
[311725828,1705365035034,-10158.19,0.00022798,2]
[311725829,1705365035044,-655.28,0.00022798,2]
[311725830,1705365035054,-552.51,0.00022798,2]
[311725831,1705365035064,-2212.71,0.00022798,2]
[311725832,1705365035074,-500.0,0.00022798,2]
[311725833,1705365035083,-4227.97,0.00022798,2]
[311725834,1705365035093,-11.12182775,0.00022798,2]
[311725835,1705365035134,-931.30817225,0.00022798,2]
[311725836,1705365035144,-500.0,0.00022798,2]
[311725837,1705365035154,-1542.36170966,0.00022798,2]
[311725838,1705365035166,-1058.01904931,0.00022798,2]
[311725839,1705365035177,-255.8730365,0.00022798,2]
[311725840,1705365035190,-316.39842106,0.00022798,2]
[311725841,1705365035202,-432.81778347,0.00022798,2]
[311725842,1705365035212,-333.71,0.00022798,2]
[311725843,1705365035221,-500.0,0.00022798,2]
[311725844,1705365035230,-9686.08,0.00022798,2]
[311725845,1705365035240,-7550.47,0.00022798,2]
[311725846,1705365035249,-880.24,0.00022798,2]
[311725847,1705365035259,-812.06,0.00022798,2]
[311725848,1705365035269,-500.0,0.00022798,2]
[311725849,1705365035279,-2036.2,0.00022798,2]
[311725850,1705365035289,-8727.63,0.00022798,2]
[311725851,1705365035298,-803.44,0.00022798,2]
[311725852,1705365035308,-3527.84,0.00022798,2]
[311725853,1705365035318,-4096.97,0.00022798,2]
[311725854,1705365035328,-804.7,0.00022798,2]
[311725855,1705365035337,-895.9,0.00022798,2]
[311725856,1705365035348,-7226.12,0.00022798,2]
[311725857,1705365035358,-567.02,0.00022798,2]
[311725858,1705365035369,-1007.95,0.00022798,2]
[311725859,1705365035379,-626.3472439,0.00022798,2]
[311725867,1705365038254,-984.43,0.00022797,2]
[311725868,1705365038264,-460.2627561,0.00022798,2]
[311725869,1705365038274,-875.83,0.00022798,2]
[311725870,1705365038283,-168.02792446,0.00022798,2]
[311725871,1705365038293,-500.0,0.00022798,2]
[311725872,1705365038302,-4155.46,0.00022798,2]
[311725873,1705365038312,-500.0,0.00022798,2]
[311725874,1705365038322,-177.2776797,0.00022798,2]
[311725875,1705365038333,-1177.78,0.00022798,2]
[311725876,1705365038342,-2186.02,0.00022798,2]
[311725877,1705365038352,-3340.66,0.00022798,2]
[311725878,1705365038365,-815.64,0.00022798,2]
[311725879,1705365038375,-4493.42,0.00022798,2]
[311725880,1705365038386,-649.21,0.00022798,2]
[311725881,1705365038396,-1320.96,0.00022798,2]
[311725882,1705365038406,-531.67913783,0.00022798,2]
[311725883,1705365038416,-500.0,0.00022798,2]
[311725884,1705365038426,-500.0,0.00022798,2]
[311725885,1705365038436,-732.81,0.00022798,2]
[311725886,1705365038447,-771.8,0.00022798,2]
[311725887,1705365038457,-1335.94,0.00022798,2]
[311725888,1705365038467,-3506.43,0.00022798,2]
[311725889,1705365038477,-1764.57,0.00022798,2]
[311725890,1705365038487,-500.0,0.00022798,2]
[311725891,1705365038498,-831.91,0.00022798,2]
[311725892,1705365038507,-4943.06712262,0.00022798,2]
[311725893,1705365038519,-2441.12287738,0.00022798,2]
[311725894,1705365038529,-4888.52,0.00022798,2]
[311725895,1705365038538,-1716.69,0.00022798,2]
[311725896,1705365038548,-500.0,0.00022798,2]
[311725897,1705365038557,-500.0,0.00022798,2]
[311725898,1705365038567,-209.91963838,0.00022798,2]
[311725899,1705365038576,-500.0,0.00022798,2]
[311725900,1705365038586,-506.00684087,0.00022798,2]
[311725901,1705365038595,-813.02,0.00022798,2]
[311725902,1705365038604,-2027.81,0.00022798,2]
[311725903,1705365038617,-819.71,0.00022798,2]
[311725904,1705365038630,-500.0,0.00022798,2]
[311725905,1705365038639,-1586.58,0.00022798,2]
[311725906,1705365038648,-500.0,0.00022798,2]
[311725908,1705365038657,-1000.0,0.00022798,2]
[311725910,1705365038666,-8502.74469973,0.00022799,2]
[311725913,1705365038684,-12340.47350027,0.00022799,2]
[311725915,1705365038694,-500.0,0.00022799,2]
[311725917,1705365038703,-48994.73912832,0.00022799,2]
[311725920,1705365038731,-971.933,0.00022799,2]
[311725921,1705365038754,-21733.5547,0.00022799,2]
[311725922,1705365038779,-556.75400008,0.00022799,2]
[311725923,1705365038791,-903.352006,0.00022799,2]
[311725935,1705365038924,-13326.45110679,0.00022799,2]
[311725937,1705365038936,-5140.75444911,0.00022799,2]
[311726125,1705365040764,-333.33956755,0.00022797,2]
[311726127,1705365040776,-166.66043245,0.00022797,2]
[311726130,1705365040786,-500.0,0.00022797,2]
[311726132,1705365040796,-1253.23736754,0.00022797,2]
[311726175,1705365041203,-700.43927189,0.00022797,2]
[311726189,1705365041322,-701.66503495,0.00022797,2]
[311726191,1705365041335,-250.0,0.00022797,2]
[311726197,1705365041388,-2954.55832562,0.00022797,2]
[311726199,1705365041398,-500.0,0.00022797,2]
[311726201,1705365041407,-500.0,0.00022797,2]
[311726203,1705365041417,-1157.52,0.00022797,2]
[311726205,1705365041426,-1259.75,0.00022797,2]
[311726206,1705365041436,-445.07492417,0.00022798,2]
[311726463,1705365043733,-388.75256803,0.00022797,2]
[311726465,1705365043742,-148.07743197,0.00022797,2]
[311726468,1705365043756,-351.92256803,0.00022797,2]
[311726470,1705365043766,-54.92507583,0.00022798,2]
[311726471,1705365043775,-2241.86477914,0.00022798,2]
[311726478,1705365043831,-500.91146975,0.00022798,2]
[311726650,1705365046349,-591.61324659,0.00022798,2]
[311726651,1705365046361,-180.89050452,0.00022798,2]
[311726652,1705365046372,-412.11976548,0.00022799,2]
[311726653,1705365046465,-9368.6801351,0.00022799,2]
[311726654,1705365046477,-7686.79926817,0.00022799,2]
[311726655,1705365046525,-2824.50000151,0.00022799,2]
[311726663,1705365096661,193.83,0.00021888,2]
[311726664,1705365096771,193.83,0.00022004,2]
[311726665,1705365102939,725.91,0.00021823,2]
[311726666,1705365153824,200.0,0.00021714,30]
[311726667,1705365153868,204.0,0.00021192,2]
[311726668,1705365153894,200.0,0.00021714,30]
[311726669,1705365153927,315.00235396,0.00021714,30]
[311726672,1705365160616,200.5525746,0.00021918,2]
[311726673,1705365201856,1063.21449488,0.0002209,2]
[311726674,1705365219041,152.67,0.00021888,2]
[311726675,1705365219471,152.67,0.00022015,2]
[311726676,1705365239697,160.5,0.00021857,2]
[311726677,1705365327864,493.93,0.00019679,2]
[311726678,1705365328070,493.93,0.00021943,2]
[311726689,1705365372559,1538.74,0.000221,2]
[311726712,1705365412266,1060.91,0.00021601,2]
[311726724,1705365462999,239.88938086,0.00021918,2]
[311726725,1705365470457,737.6,0.00021599,2]
[311726730,1705365490938,194.81,0.00021599,10]
[311726731,1705365505751,245000.0,0.00022088,2]
[311726732,1705365507512,250.0,0.00021918,2]
[311726735,1705365541135,170.92,0.0002157,2]
[311726736,1705365571570,789.39,0.00021525,2]
[311726743,1705365627565,765.50905169,0.0002209,2]
[311726745,1705365648854,1136.01929882,0.00022101,2]
[311726748,1705365686650,152.67,0.00021655,2]
[311726749,1705365686884,152.67,0.00021816,2]
[311726750,1705365687280,152.67,0.00021977,2]
[311726752,1705365705660,97905.001,0.00022088,2]
[311726754,1705365721544,300.0,0.00022101,2]
[311726755,1705365721596,150.0,0.00022101,2]
[311726756,1705365722264,25698.0,0.00022,2]
[311726758,1705365738181,246.50227465,0.00022099,2]
[311726763,1705365806605,842.51,0.00022188,5]
[311726779,1705365867212,457.37,0.00019552,2]
[311726780,1705365867461,457.37,0.00021816,2]
[311726781,1705365873657,204.0,0.00021234,2]
[311726783,1705365887795,164.33484976,0.0002209,2]
[311726786,1705365901631,150.0,0.00022101,2]
[311726787,1705365901796,300.0,0.00022101,2]
[311726791,1705365904950,500.0,0.00022188,7]
[311726797,1705365933756,203.0,0.00021234,2]
[311726800,1705365951326,250.0,0.00021918,2]
[311726802,1705365975158,199.9693645,0.0002209,2]
[311726805,1705366008487,736.76,0.00021461,2]
[311726807,1705366033617,807.4,0.00022187,5]
[311726808,1705366034106,164.33484976,0.0002209,2]
[311726810,1705366050853,500.0,0.000216,7]
[311726811,1705366052671,1100.0,0.000217,7]
[311726812,1705366054751,1700.0,0.000218,7]
[311726813,1705366056847,2200.0,0.000219,7]
[311726815,1705366081897,235.0,0.00022101,2]
[311726817,1705366086828,1000.0,0.0002146,2]
[311726818,1705366092114,669.82042029,0.00022088,2]
[311726821,1705366124253,152.67,0.00021607,2]
[311726822,1705366124648,152.67,0.00021889,2]
[311726825,1705366172639,164.33484976,0.00022088,2]
[311726830,1705366210902,250.0,0.000205,2]
[311726842,1705366231359,-494.36413092,0.00022102,2]
[311726843,1705366231369,-634.88122202,0.00022102,2]
[311726844,1705366231386,-4805.60654338,0.00022102,2]
[311726845,1705366231397,-193.83,0.00022119,2]
[311726846,1705366231406,-150.0,0.00022164,2]
[311726847,1705366231414,-152.67,0.0002217,2]
[311726848,1705366231423,-194.77033893,0.00022186,2]
[311726849,1705366231432,-155.0,0.00022187,2]
[311726850,1705366231442,-1000.0,0.00022187,2]
[311726851,1705366231452,-500.0,0.00022187,2]
[311726852,1705366231461,-500.0,0.00022187,2]
[311726853,1705366231470,-500.0,0.00022187,2]
[311726854,1705366231480,-664.81,0.00022187,2]
[311726855,1705366231489,-574.17,0.00022187,2]
[311726856,1705366231499,-500.0,0.00022187,2]
[311726857,1705366231509,-500.0,0.00022187,2]
[311726858,1705366231521,-500.0,0.00022187,2]
[311726859,1705366231530,-644.77,0.00022187,2]
[311726860,1705366231541,-500.0,0.00022187,2]
[311726861,1705366231551,-500.0,0.00022187,2]
[311726862,1705366231560,-500.0,0.00022187,2]
[311726863,1705366231569,-500.0,0.00022187,2]
[311726864,1705366231579,-500.0,0.00022187,2]
[311726865,1705366231588,-500.0,0.00022187,2]
[311726866,1705366231597,-500.0,0.00022187,2]
[311726867,1705366231610,-500.0,0.00022187,2]
[311726868,1705366231620,-500.0,0.00022187,2]
[311726869,1705366231629,-500.0,0.00022187,2]
[311726870,1705366231639,-500.0,0.00022187,2]
[311726871,1705366231648,-623.47,0.00022187,2]
[311726872,1705366231657,-500.0,0.00022187,2]
[311726873,1705366231667,-500.0,0.00022187,2]
[311726874,1705366231677,-500.0,0.00022187,2]
[311726875,1705366231686,-500.0,0.00022187,2]
[311726877,1705366231696,-159.22859289,0.00022187,2]
[311726879,1705366231705,-500.0,0.00022187,2]
[311726881,1705366231715,-500.0,0.00022187,2]
[311726882,1705366231724,-500.0,0.00022187,2]
[311726883,1705366231734,-500.0,0.00022187,2]
[311726884,1705366231743,-500.0,0.00022187,2]
[311726885,1705366231753,-750.97,0.00022187,2]
[311726886,1705366231763,-500.0,0.00022187,2]
[311726887,1705366231772,-500.0,0.00022187,2]
[311726888,1705366231782,-500.0,0.00022187,2]
[311726889,1705366231792,-500.0,0.00022187,2]
[311726890,1705366231801,-500.0,0.00022187,2]
[311726891,1705366231811,-500.0,0.00022187,2]
[311726892,1705366231820,-421.53096081,0.00022187,2]
[311726893,1705366231830,-684.13,0.00022187,2]
[311726894,1705366231839,-500.0,0.00022187,2]
[311726895,1705366231848,-520.68,0.00022187,2]
[311726896,1705366231862,-550.96,0.00022187,2]
[311726897,1705366231871,-500.0,0.00022187,2]
[311726898,1705366231880,-500.0,0.00022187,2]
[311726899,1705366231890,-943.41,0.00022187,2]
[311726900,1705366231899,-581.26,0.00022187,2]
[311726901,1705366231908,-793.6,0.00022187,2]
[311726902,1705366231917,-2547.37,0.00022187,2]
[311726903,1705366231927,-773.31,0.00022187,2]
[311726904,1705366231938,-1453.33,0.00022187,2]
[311726905,1705366231947,-1442.7,0.00022187,2]
[311726906,1705366231956,-500.0,0.00022187,2]
[311726907,1705366231965,-500.0,0.00022187,2]
[311726908,1705366231975,-500.0,0.00022187,2]
[311726909,1705366231985,-879.59,0.00022187,2]
[311726910,1705366231996,-698.27,0.00022187,2]
[311726911,1705366232008,-500.0,0.00022187,2]
[311726912,1705366232018,-1180.28,0.00022187,2]
[311726913,1705366232027,-500.0,0.00022187,2]
[311726914,1705366232036,-500.0,0.00022187,2]
[311726915,1705366232046,-6113.8,0.00022187,2]
[311726916,1705366232055,-500.0,0.00022187,2]
[311726917,1705366232064,-11162.78,0.00022187,2]
[311726918,1705366232073,-500.0,0.00022187,2]
[311726919,1705366232083,-500.0,0.00022187,2]
[311726920,1705366232093,-796.85,0.00022187,2]
[311726921,1705366232102,-500.0,0.00022187,2]
[311726922,1705366232111,-500.0,0.00022187,2]
[311726923,1705366232121,-500.0,0.00022187,2]
[311726924,1705366232131,-771.3,0.00022187,2]
[311726925,1705366232140,-1726.45,0.00022187,2]
[311726926,1705366232149,-16803.4,0.00022187,2]
[311726927,1705366232158,-500.0,0.00022187,2]
[311726928,1705366232167,-500.0,0.00022187,2]
[311726929,1705366232177,-500.0,0.00022187,2]
[311726930,1705366232186,-867.69,0.00022187,2]
[311726931,1705366232195,-500.0,0.00022187,2]
[311726932,1705366232204,-500.0,0.00022187,2]
[311726933,1705366232213,-748.46,0.00022187,2]
[311726934,1705366232223,-500.0,0.00022187,2]
[311726935,1705366232232,-5125.05,0.00022187,2]
[311726936,1705366232241,-583.41,0.00022187,2]
[311726937,1705366232251,-500.0,0.00022187,2]
[311726938,1705366232260,-500.0,0.00022187,2]
[311726939,1705366232269,-500.0,0.00022187,2]
[311726940,1705366232278,-500.0,0.00022187,2]
[311726941,1705366232287,-500.0,0.00022187,2]
[311726942,1705366232297,-3703.8,0.00022187,2]
[311726943,1705366232306,-4267.82,0.00022187,2]
[311726944,1705366232315,-10481.37855107,0.00022187,2]
[311726945,1705366232332,-1186.69011417,0.00022187,2]
[311726946,1705366232344,-269.42731393,0.00022187,2]
[311726947,1705366232356,-907.0,0.00022187,2]
[311726948,1705366232373,-4290.71353685,0.00022187,2]
[311726949,1705366232385,-15393.73048398,0.00022187,2]
[311726950,1705366232394,-500.0,0.00022187,2]
[311726951,1705366232403,-500.0,0.00022187,2]
[311726952,1705366232413,-2381.14,0.00022187,2]
[311726953,1705366232422,-764.1,0.00022187,2]
[311726954,1705366232431,-191.94311516,0.00022187,2]
[311726955,1705366232440,-500.0,0.00022187,2]
[311726956,1705366232450,-682.84,0.00022187,2]
[311726957,1705366232459,-500.0,0.00022187,2]
[311726958,1705366232468,-1287.48,0.00022187,2]
[311726959,1705366232478,-2427.39,0.00022187,2]
[311726960,1705366232487,-500.0,0.00022187,2]
[311726961,1705366232496,-500.0,0.00022187,2]
[311726962,1705366232506,-500.0,0.00022187,2]
[311726963,1705366232515,-500.0,0.00022187,2]
[311726964,1705366232524,-2120.51,0.00022187,2]
[311726965,1705366232533,-500.0,0.00022187,2]